bitfinex/quotes_BTCUSD_20250825
["timestamp","ask_amount","ask_price","bid_price","bid_amount"]
[1756110311029,0.282332,111870.0,111860.0,0.00053022]
[1756110311479,0.282332,111870.0,111860.0,0.00153022]
[1756110311954,0.622332,111870.0,111860.0,0.00053022]
[1756110313297,0.779972,111870.0,111860.0,0.00053022]
[1756110313515,0.8151055,111870.0,111860.0,0.00053022]
[1756110313734,0.779932,111870.0,111860.0,0.00053022]
[1756110313924,0.780932,111870.0,111860.0,0.00053022]
[1756110314166,0.79492331,111870.0,111860.0,0.00053022]
[1756110314376,0.62065499,111870.0,111860.0,0.00053022]
[1756110314562,0.88081422,111870.0,111860.0,0.00053022]
[1756110314805,0.63734457,111870.0,111860.0,0.00053022]
[1756110315038,0.79494534,111870.0,111860.0,0.00053022]
[1756110315269,0.79694534,111870.0,111860.0,0.00053022]
[1756110316507,0.64293034,111870.0,111860.0,0.00053022]
[1756110316725,0.80053034,111870.0,111860.0,0.00053022]
[1756110317647,0.88739999,111870.0,111860.0,0.00053022]
[1756110318325,0.88739999,111870.0,111860.0,0.00255022]
[1756110318326,0.62175141,111870.0,111860.0,0.00255022]
[1756110318545,0.62175141,111870.0,111860.0,0.00550022]
[1756110319238,0.37726666,111870.0,111860.0,0.00550022]
[1756110319461,0.02057631,111870.0,111860.0,0.00585577]
[1756110319680,0.01499131,111870.0,111860.0,0.00585577]
[1756110319868,0.1982605,111880.0,111870.0,0.00035555]
[1756110320148,0.01669811,111880.0,111870.0,0.00237555]
[1756110320378,0.01669811,111880.0,111870.0,0.00532555]
[1756110320600,0.38357411,111880.0,111870.0,0.00532555]
[1756110320827,0.35669811,111880.0,111870.0,0.00756028]
[1756110321044,0.01669811,111880.0,111870.0,0.00756028]
[1756110321315,0.01669811,111880.0,111870.0,0.00532555]
[1756110322193,0.01669811,111880.0,111870.0,0.00632555]
[1756110323433,0.01669811,111880.0,111870.0,0.00732555]
[1756110324005,0.34,111890.0,111870.0,0.00732555]
[1756110324365,0.36503984,111890.0,111880.0,0.00295]
[1756110324587,0.36503984,111890.0,111880.0,0.00497]
[1756110328435,0.52255984,111890.0,111880.0,0.00497]
[1756110328650,0.36503984,111890.0,111880.0,0.00497]
[1756110329574,0.37004084,111890.0,111880.0,0.00497]
[1756110330611,0.36169423,111890.0,111880.0,0.00497]
[1756110330828,0.3700452,111890.0,111880.0,0.00497]
[1756110332709,0.3700452,111890.0,111870.0,0.00330555]
[1756110332879,0.5275252,111890.0,111870.0,0.00330555]
[1756110334141,0.52753976,111890.0,111870.0,0.00330555]
[1756110334378,0.52753976,111890.0,111880.0,0.00202]
[1756110334631,0.37006069,111890.0,111880.0,0.00295]
[1756110334845,0.52754069,111890.0,111880.0,0.00295]
[1756110335291,0.71522732,111890.0,111870.0,0.00035555]
[1756110335501,0.15744,111880.0,111870.0,0.01330555]
[1756110335718,0.17414677,111880.0,111870.0,0.01532555]
[1756110335953,0.01670677,111880.0,111870.0,0.1022103]
[1756110336164,0.35670677,111890.0,111880.0,0.00035555]
[1756110336384,0.02507319,111890.0,111880.0,0.09667936]
[1756110336602,0.02507319,111890.0,111880.0,0.18354901]
[1756110336829,0.02507319,111890.0,111880.0,0.17907995]
[1756110337268,0.01671545,111890.0,111880.0,0.0932103]
[1756110337477,0.01671545,111890.0,111880.0,0.09544483]
[1756110337618,0.01671545,111890.0,111880.0,0.0922103]
[1756110337861,0.02507325,111890.0,111880.0,0.0922103]
[1756110338255,0.01671545,111890.0,111880.0,0.0952103]
[1756110338466,0.01671545,111890.0,111880.0,0.0962103]
[1756110339054,0.01671545,111890.0,111880.0,0.12157133]
[1756110339714,0.01671545,111890.0,111880.0,0.12457133]
[1756110340345,0.34,111900.0,111880.0,0.12457133]
[1756110340553,0.36506677,111900.0,111890.0,0.00304]
[1756110340768,0.36506677,111900.0,111890.0,0.00512]
[1756110340980,0.36506677,111900.0,111890.0,0.00035555]
[1756110341187,0.02506677,111900.0,111890.0,0.00035555]
[1756110341624,0.02506677,111900.0,111890.0,0.00547555]
[1756110342700,0.02506677,111900.0,111890.0,0.00747555]
[1756110343562,0.02506677,111900.0,111890.0,0.00947555]
[1756110343776,0.02507352,111900.0,111890.0,0.00947555]
[1756110344464,0.02507381,111900.0,111890.0,0.00947555]
[1756110346361,0.02507381,111900.0,111890.0,0.00739555]
[1756110346984,0.02507381,111900.0,111890.0,0.00435555]
[1756110347412,0.55007574,111900.0,111890.0,0.004]
[1756110347623,0.56933984,111900.0,111890.0,0.004]
[1756110347866,0.59621384,111900.0,111890.0,0.004]
[1756110348248,0.68309859,111900.0,111890.0,0.004]
[1756110348822,0.68311357,111900.0,111890.0,0.004]
[1756110350225,0.68311357,111900.0,111890.0,0.002]
[1756110350451,0.51875434,111890.0,111870.0,0.01453209]
[1756110350643,0.70116212,111890.0,111870.0,0.01453209]
[1756110351043,0.69116212,111890.0,111870.0,0.01453209]
[1756110351878,0.51876296,111880.0,111870.0,0.01113654]
[1756110352080,0.54385074,111880.0,111870.0,0.01113654]
[1756110352285,0.57072974,111880.0,111870.0,0.01113654]
[1756110352501,0.57072974,111880.0,111870.0,0.01313654]
[1756110352702,0.57072974,111880.0,111870.0,0.01113654]
[1756110352941,0.39196678,111880.0,111870.0,0.01113654]
[1756110353146,0.54924678,111880.0,111870.0,0.01717654]
[1756110353349,0.72800974,111880.0,111870.0,0.01313654]
[1756110353532,0.70292196,111880.0,111870.0,0.01113654]
[1756110353723,0.54923295,111880.0,111870.0,0.01213654]
[1756110353953,0.54923295,111880.0,111870.0,0.01825654]
[1756110354359,0.549233,111880.0,111870.0,0.01825654]
[1756110354563,0.39195227,111880.0,111870.0,0.01617654]
[1756110354767,0.540875,111880.0,111870.0,0.01825654]
[1756110354958,0.540875,111880.0,111870.0,0.01617654]
[1756110355136,0.54923223,111880.0,111870.0,0.01617654]
[1756110355338,0.540875,111880.0,111870.0,0.01617654]
[1756110355746,0.58946532,111880.0,111870.0,0.01617654]
[1756110356389,0.75987164,111880.0,111870.0,0.01313654]
[1756110357616,0.58110868,111880.0,111870.0,0.01313654]
[1756110358628,0.75987164,111880.0,111870.0,0.01313654]
[1756110359042,0.75987164,111880.0,111870.0,0.01318654]
[1756110360086,0.74315564,111880.0,111870.0,0.01318654]
[1756110360263,0.75986184,111880.0,111870.0,0.01318654]
[1756110360685,0.76821458,111880.0,111870.0,0.01318654]
[1756110360882,0.94196898,111880.0,111870.0,0.01318654]
[1756110361072,0.85509933,111880.0,111870.0,0.01318654]
[1756110362504,0.51509281,111880.0,111870.0,0.01318654]
[1756110365781,0.5150897,111880.0,111870.0,0.01318654]
[1756110366198,0.5150097,111880.0,111870.0,0.01318654]
[1756110367531,0.3578097,111880.0,111870.0,0.01318654]
[1756110367797,0.17904674,111880.0,111870.0,0.01318654]
[1756110367997,0.5150097,111880.0,111870.0,0.01318654]
[1756110368225,0.31757602,111880.0,111870.0,0.01318654]
[1756110368438,0.47477602,111880.0,111870.0,0.01318654]
[1756110368669,0.20912831,111880.0,111870.0,0.01830654]
[1756110368876,0.20912831,111880.0,111870.0,0.01866209]
[1756110369101,0.2007812,111880.0,111870.0,0.01866209]
[1756110369309,0.20077335,111880.0,111870.0,0.01866209]
[1756110369746,0.184079,111880.0,111870.0,0.01766209]
[1756110369951,0.184079,111880.0,111870.0,0.01666209]
[1756110370161,0.184079,111880.0,111870.0,0.01866209]
[1756110370381,0.0435775,111880.0,111870.0,0.02066209]
[1756110370799,0.2007375,111880.0,111870.0,0.02066209]
[1756110372136,0.184039,111880.0,111870.0,0.02066209]
[1756110372366,0.20073776,111880.0,111870.0,0.02066209]
[1756110374288,0.37950072,111880.0,111870.0,0.02066209]
[1756110375186,0.37950072,111880.0,111870.0,0.01554209]
[1756110375412,0.38785278,111880.0,111870.0,0.01554209]
[1756110375623,0.38785278,111880.0,111870.0,0.01518654]
[1756110375859,0.38785278,111880.0,111870.0,0.01554209]
[1756110377137,0.47473753,111880.0,111870.0,0.01518654]
[1756110377955,0.31757753,111880.0,111870.0,0.01837654]
[1756110378165,0.47469753,111880.0,111870.0,0.01837654]
[1756110378590,0.47469753,111880.0,111870.0,0.02044654]
[1756110379224,0.48868584,111880.0,111870.0,0.01518654]
[1756110379778,0.48868584,111880.0,111870.0,0.02044654]
[1756110380635,0.48868584,111880.0,111870.0,0.01518654]
[1756110382179,0.47470322,111880.0,111870.0,0.01518654]
[1756110382797,0.31758322,111880.0,111870.0,0.01318654]
[1756110383002,0.47466322,111880.0,111870.0,0.01118654]
[1756110383938,0.81466322,111880.0,111870.0,0.01118654]
[1756110385294,0.82030447,111880.0,111870.0,0.01118654]
[1756110385678,0.82865904,111880.0,111870.0,0.01118654]
[1756110386315,0.94104654,111880.0,111870.0,0.01118654]
[1756110387192,0.96610445,111880.0,111870.0,0.01118654]
[1756110387672,0.99017436,111880.0,111870.0,0.01118654]
[1756110388378,0.99117436,111880.0,111870.0,0.01118654]
[1756110388589,0.99217436,111880.0,111870.0,0.01118654]
[1756110388796,0.99117436,111880.0,111870.0,0.01118654]
[1756110389041,0.8791668,111880.0,111870.0,0.01118654]
[1756110389250,0.8801668,111880.0,111870.0,0.01118654]
[1756110389436,0.85609689,111880.0,111870.0,0.01118654]
[1756110391304,0.8972285,111880.0,111870.0,0.01118654]
[1756110391715,0.7402285,111880.0,111870.0,0.01118654]
[1756110391854,0.897158,111880.0,111870.0,0.01118654]
[1756110392396,0.98402765,111880.0,111870.0,0.01118654]
[1756110392605,0.98402676,111880.0,111870.0,0.01118654]
[1756110392804,0.98402319,111880.0,111870.0,0.01118654]
[1756110397047,0.82706319,111880.0,111870.0,0.01118654]
[1756110397275,0.98398319,111880.0,111870.0,0.01118654]
[1756110397937,5.72262521,111880.0,111870.0,0.01118654]
[1756110398116,5.74768312,111880.0,111870.0,0.01118654]
[1756110399078,5.75776441,111880.0,111870.0,0.01118654]
[1756110399514,5.70859659,111880.0,111870.0,0.01118654]
[1756110399720,5.70859659,111880.0,111870.0,0.01443654]
[1756110399929,5.70859659,111880.0,111870.0,0.01118654]
[1756110401431,5.55171659,111880.0,111870.0,0.01118654]
[1756110401644,5.68356045,111880.0,111870.0,0.01118654]
[1756110401872,5.77732948,111880.0,111870.0,0.01443654]
[1756110402093,5.69045983,111880.0,111870.0,0.01443654]
[1756110402290,5.70444972,111880.0,111870.0,0.01653654]
[1756110402478,5.54757084,111880.0,111870.0,0.01653654]
[1756110402733,5.70445084,111880.0,111870.0,0.01653654]
[1756110404603,5.70445084,111880.0,111870.0,0.01443654]
[1756110404824,5.70445084,111880.0,111870.0,0.01653654]
[1756110405010,5.70441084,111880.0,111870.0,0.01653654]
[1756110405161,5.54757268,111880.0,111870.0,0.01653654]
[1756110405376,5.70441268,111880.0,111870.0,0.01443654]
[1756110406402,5.79128233,111880.0,111870.0,0.01653654]
[1756110406922,5.70441268,111880.0,111870.0,0.01653654]
[1756110407291,0.80893066,111880.0,111870.0,0.01653654]
[1756110407493,0.62573066,111880.0,111870.0,0.01653654]
[1756110407774,0.96573066,111880.0,111870.0,0.01653654]
[1756110408105,0.92459905,111880.0,111870.0,0.01653654]
[1756110408302,0.92460146,111880.0,111870.0,0.01653654]
[1756110409008,0.92461256,111880.0,111870.0,0.01653654]
[1756110409222,0.76781256,111880.0,111870.0,0.01653654]
[1756110409380,0.92461256,111880.0,111870.0,0.01653654]
[1756110409580,0.76781256,111880.0,111870.0,0.01653654]
[1756110409782,0.92461256,111880.0,111870.0,0.01653654]
[1756110411377,0.91062267,111880.0,111870.0,0.01653654]
[1756110411795,0.90438101,111880.0,111870.0,0.01653654]
[1756110411984,0.91064176,111880.0,111870.0,0.01653654]
[1756110412226,0.5750788,111880.0,111870.0,0.01653654]
[1756110412474,0.7318388,111880.0,111870.0,0.01653654]
[1756110412883,0.5750788,111880.0,111870.0,0.01653654]
[1756110413130,0.64495405,111880.0,111870.0,0.01653654]
[1756110414031,0.64495405,111880.0,111870.0,0.01689209]
[1756110414032,0.57615405,111880.0,111870.0,0.01689209]
[1756110414240,0.5698933,111880.0,111870.0,0.01689209]
[1756110414420,0.57615597,111880.0,111870.0,0.01689209]
[1756110414781,0.2298933,111880.0,111870.0,0.01689209]
[1756110414986,0.21064187,111880.0,111870.0,0.01689209]
[1756110415888,0.25165268,111880.0,111870.0,0.01689209]
[1756110417988,0.59165268,111880.0,111870.0,0.01689209]
[1756110418399,0.59165169,111880.0,111870.0,0.01689209]
[1756110418624,0.58330506,111880.0,111870.0,0.01689209]
[1756110421285,0.58329445,111880.0,111870.0,0.01689209]
[1756110422097,0.56652981,111880.0,111870.0,0.01689209]
[1756110422271,0.15664,111880.0,111870.0,0.01689209]
[1756110422483,0.173532,111880.0,111870.0,0.01689209]
[1756110423210,0.173532,111880.0,111870.0,0.01989209]
[1756110424368,0.173532,111880.0,111870.0,0.02189209]
[1756110424776,0.016892,111880.0,111870.0,0.02189209]
[1756110425013,0.173452,111880.0,111870.0,0.02189209]
[1756110425608,0.21416485,111880.0,111870.0,0.02189209]
[1756110425814,0.39292781,111880.0,111870.0,0.02189209]
[1756110427453,0.35221496,111880.0,111870.0,0.02189209]
[1756110428256,0.35221496,111880.0,111870.0,0.01618654]
[1756110428437,0.36888834,111880.0,111870.0,0.01618654]
[1756110428982,0.36888827,111880.0,111870.0,0.01618654]
[1756110430230,0.36888996,111880.0,111870.0,0.01618654]
[1756110430637,0.40998533,111880.0,111870.0,0.01618654]
[1756110431044,0.40998545,111880.0,111870.0,0.01618654]
[1756110434933,0.40986545,111880.0,111870.0,0.01912654]
[1756110435359,0.21421049,111880.0,111870.0,0.01912654]
[1756110435567,0.41981245,111880.0,111870.0,0.02116654]
[1756110436170,0.26341245,111880.0,111870.0,0.02116654]
[1756110436507,0.41981245,111880.0,111870.0,0.02116654]
[1756110438000,0.41977245,111880.0,111870.0,0.02116654]
[1756110438220,0.41977245,111880.0,111870.0,0.01618654]
[1756110438480,0.5150048,111880.0,111870.0,0.01618654]
[1756110438967,0.8550048,111880.0,111870.0,0.01618654]
[1756110440374,0.85503042,111880.0,111870.0,0.01618654]
[1756110440551,0.85503042,111880.0,111870.0,0.01118654]
[1756110440998,0.85503042,111880.0,111870.0,0.01318654]
[1756110441198,0.85503042,111880.0,111870.0,0.01518654]
[1756110441650,0.85503042,111880.0,111870.0,0.01718654]
[1756110442082,0.69867042,111880.0,111870.0,0.01718654]
[1756110442305,0.85499042,111880.0,111870.0,0.01718654]
[1756110442802,0.85499042,111880.0,111870.0,0.02216654]
[1756110443029,0.85499042,111880.0,111870.0,0.02012654]
[1756110443712,0.85500236,111880.0,111870.0,0.02012654]
[1756110443933,1.30340236,111880.0,111870.0,0.02012654]
[1756110445260,1.30340236,111880.0,111870.0,0.01718654]
[1756110445682,1.31739118,111880.0,111870.0,0.01718654]
[1756110446590,1.33664582,111880.0,111870.0,0.01718654]
[1756110446792,1.33664771,111880.0,111870.0,0.01718654]
[1756110447007,1.31739705,111880.0,111870.0,0.01718654]
[1756110447219,1.33664756,111880.0,111870.0,0.01718654]
[1756110448577,1.40540756,111880.0,111870.0,0.01718654]
[1756110449701,1.41167391,111880.0,111870.0,0.01718654]
[1756110449830,1.39496315,111880.0,111870.0,0.01718654]
[1756110450065,1.41167518,111880.0,111870.0,0.01718654]
[1756110451156,1.41159518,111880.0,111870.0,0.01718654]
[1756110451328,1.41159518,111880.0,111870.0,0.02012654]
[1756110451967,1.41155518,111880.0,111870.0,0.02216654]
[1756110452770,1.41155518,111880.0,111870.0,0.02012654]
[1756110454713,1.41151518,111880.0,111870.0,0.02012654]
[1756110455362,1.41151518,111880.0,111870.0,0.01718654]
[1756110455576,1.49838483,111880.0,111870.0,0.01718654]
[1756110456219,1.41151518,111880.0,111870.0,0.01718654]
[1756110456430,1.38853708,111880.0,111870.0,0.01718654]
[1756110456654,1.41151495,111880.0,111870.0,0.01718654]
[1756110459598,1.38018141,111880.0,111870.0,0.01718654]
[1756110459813,1.41151742,111880.0,111870.0,0.01718654]
[1756110460023,1.51583609,111880.0,111870.0,0.01718654]
[1756110460232,1.50747983,111880.0,111870.0,0.01118654]
[1756110460456,1.5158361,111880.0,111870.0,0.01118654]
[1756110460632,1.27280645,111880.0,111870.0,0.01118654]
[1756110460834,1.42888645,111880.0,111870.0,0.01218654]
[1756110461055,1.42888645,111880.0,111870.0,0.01318654]
[1756110462916,1.42884645,111880.0,111870.0,0.01318654]
[1756110463119,1.42884564,111880.0,111870.0,0.01318654]
[1756110463949,1.27280564,111880.0,111870.0,0.01318654]
[1756110464147,1.42880386,111880.0,111870.0,0.01318654]
[1756110465422,1.41481504,111880.0,111870.0,0.01318654]
[1756110466526,1.43888495,111880.0,111870.0,0.01318654]
[1756110466717,1.41481504,111880.0,111870.0,0.01318654]
[1756110466960,1.43888495,111880.0,111870.0,0.01318654]
[1756110467340,1.41481504,111880.0,111870.0,0.01318654]
[1756110468162,1.25881504,111880.0,111870.0,0.01318654]
[1756110468363,1.41131548,111880.0,111870.0,0.01844654]
[1756110468563,1.25535548,111880.0,111870.0,0.01844654]
[1756110468767,1.41131548,111880.0,111870.0,0.01844654]
[1756110468963,1.25535548,111880.0,111870.0,0.01844654]
[1756110469171,1.41131548,111880.0,111870.0,0.01844654]
[1756110469583,1.25535407,111880.0,111870.0,0.01844654]
[1756110469785,1.41131226,111880.0,111870.0,0.01844654]
[1756110471138,1.41131226,111880.0,111870.0,0.01884654]
[1756110471376,1.3973228,111880.0,111870.0,0.01884654]
[1756110474617,1.41131201,111880.0,111870.0,0.01884654]
[1756110475580,1.41119201,111880.0,111870.0,0.01884654]
[1756110476320,1.41119838,111880.0,111870.0,0.01884654]
[1756110479462,1.41120906,111880.0,111870.0,0.01884654]
[1756110481411,1.0078461,111880.0,111870.0,0.01884654]
[1756110481631,0.72277214,111880.0,111870.0,0.01920209]
[1756110481856,1.06277214,111880.0,111870.0,0.01920209]
[1756110482070,0.72277214,111880.0,111870.0,0.01920209]
[1756110482280,1.05650269,111880.0,111870.0,0.01920209]
[1756110483984,1.23526565,111880.0,111870.0,0.01920209]
[1756110486198,0.89526565,111880.0,111870.0,0.01920209]
[1756110487213,0.87601514,111880.0,111870.0,0.01920209]
[1756110487664,0.69725218,111880.0,111870.0,0.01920209]
[1756110488076,0.67209437,111880.0,111870.0,0.01920209]
[1756110488377,0.69716611,111880.0,111870.0,0.01920209]
[1756110488751,0.69716595,111880.0,111870.0,0.01920209]
[1756110488954,0.24872595,111880.0,111870.0,0.01920209]
[1756110490948,0.24036923,111880.0,111870.0,0.01920209]
[1756110491581,0.19927386,111880.0,111870.0,0.01920209]
[1756110492888,0.19923386,111880.0,111870.0,0.01920209]
[1756110493097,0.026879,111880.0,111870.0,0.01920209]
[1756110493337,0.182519,111880.0,111870.0,0.01920209]
[1756110494879,0.026879,111880.0,111870.0,0.01920209]
[1756110504979,0.026879,111880.0,111870.0,0.01820209]
[1756110505417,0.026879,111880.0,111870.0,0.01920209]
[1756110505639,0.026879,111880.0,111870.0,0.01820209]
[1756110505834,0.026879,111880.0,111870.0,0.01920209]
[1756110506303,0.026879,111880.0,111870.0,0.02120209]
[1756110511695,0.026879,111880.0,111870.0,0.10808684]
[1756110511918,0.026879,111880.0,111870.0,0.19495649]
[1756110512333,0.026879,111880.0,111870.0,0.35031649]
[1756110512563,0.0539871,111890.0,111870.0,0.35031649]
[1756110512768,0.07069995,111890.0,111880.0,0.00223453]
[1756110512981,0.08358485,111890.0,111880.0,0.00720453]
[1756110513198,0.066872,111890.0,111880.0,0.09667936]
[1756110513424,0.04,111890.0,111880.0,0.12989439]
[1756110514202,0.06687,111890.0,111880.0,0.12989439]
[1756110515093,0.04,111890.0,111880.0,0.13212892]
[1756110515510,0.04,111890.0,111880.0,0.28744892]
[1756110515713,0.04,111890.0,111880.0,0.28597986]
[1756110516288,0.04,111890.0,111880.0,0.25097986]
[1756110516503,0.04,111890.0,111880.0,0.25497986]
[1756110516902,0.04,111890.0,111880.0,0.25297986]
[1756110517299,0.04,111890.0,111880.0,0.16841986]
[1756110517478,0.04,111890.0,111880.0,0.32369986]
[1756110517920,0.04,111890.0,111880.0,0.16841986]
[1756110518133,0.04202,111890.0,111880.0,0.22904]
[1756110518282,0.04525,111890.0,111880.0,0.07376]
[1756110518508,0.072122,111890.0,111880.0,0.22904]
[1756110520281,0.072122,111890.0,111880.0,0.16028]
[1756110520698,0.072122,111890.0,111880.0,0.005]
[1756110520898,0.08883758,111890.0,111880.0,0.005]
[1756110522217,0.08883758,111890.0,111880.0,0.002]
[1756110522430,0.08883758,111890.0,111870.0,0.16678654]
[1756110522650,0.08883758,111890.0,111870.0,0.22469422]
[1756110522862,0.06196558,111890.0,111880.0,0.001]
[1756110523245,0.06196558,111890.0,111870.0,0.22769422]
[1756110523448,0.08883958,111890.0,111870.0,0.07249422]
[1756110523650,0.0032,111880.0,111870.0,0.01358654]
[1756110523856,0.032095,111880.0,111870.0,0.01358654]
[1756110524082,0.032095,111880.0,111870.0,0.01158654]
[1756110525461,0.032095,111880.0,111870.0,0.01458654]
[1756110526190,0.032095,111880.0,111870.0,0.01658654]
[1756110529603,0.028895,111880.0,111870.0,0.01658654]
[1756110530032,0.032095,111880.0,111870.0,0.01658654]
[1756110532152,0.05717932,111880.0,111870.0,0.01658654]
[1756110532363,0.032095,111880.0,111870.0,0.01658654]
[1756110532575,0.79130827,111900.0,111870.0,0.01658654]
[1756110532809,0.26563293,111890.0,111870.0,0.01658654]
[1756110533017,0.026877,111880.0,111870.0,0.01658654]
[1756110533189,0.026877,111880.0,111870.0,0.01958654]
[1756110533400,0.026877,111880.0,111870.0,0.03510622]
[1756110533644,0.026877,111880.0,111870.0,0.03725622]
[1756110533822,0.026877,111880.0,111870.0,0.03525622]
[1756110534558,0.026877,111880.0,111870.0,0.01773654]
[1756110535106,0.026877,111880.0,111870.0,0.01873654]
[1756110535580,0.026877,111880.0,111870.0,0.02073654]
[1756110535778,0.026877,111880.0,111870.0,0.02373654]
[1756110539637,0.026877,111880.0,111870.0,0.06720854]
[1756110540449,0.026877,111880.0,111870.0,0.08949042]
[1756110544515,0.45251547,111900.0,111870.0,0.08949042]
[1756110544647,0.026877,111880.0,111870.0,0.08649042]
[1756110545273,0.026877,111880.0,111870.0,0.08749042]
[1756110545706,0.026877,111880.0,111870.0,0.06405854]
[1756110546179,0.026877,111880.0,111870.0,0.06520854]
[1756110546585,0.026877,111880.0,111870.0,0.06720854]
[1756110547241,0.026877,111880.0,111870.0,0.06505854]
[1756110548693,0.026877,111880.0,111870.0,0.06720854]
[1756110549280,0.04359529,111880.0,111870.0,0.06720854]
[1756110552648,0.04360917,111880.0,111870.0,0.06720854]
[1756110555932,0.04360907,111880.0,111870.0,0.06720854]
[1756110556804,0.33350757,111890.0,111870.0,0.06720854]
[1756110557009,0.36874932,111890.0,111870.0,0.06720854]
[1756110557811,0.36874932,111890.0,111870.0,0.06520854]
[1756110558058,0.36874932,111890.0,111870.0,0.06220854]
[1756110558410,0.36874932,111890.0,111870.0,0.06420854]
[1756110558844,0.36874932,111890.0,111870.0,0.08617042]
[1756110559046,0.36874932,111890.0,111870.0,0.06420854]
[1756110559248,0.36874944,111890.0,111870.0,0.06420854]
[1756110559728,0.36874944,111890.0,111870.0,0.06205854]
[1756110559907,0.34187244,111890.0,111870.0,0.06205854]
[1756110560150,0.026877,111880.0,111870.0,0.06205854]
[1756110560364,0.026877,111880.0,111870.0,0.06412854]
[1756110560833,0.15468,111890.0,111870.0,0.08606642]
[1756110561040,0.18992154,111890.0,111870.0,0.08606642]
[1756110561226,0.03524154,111890.0,111870.0,0.05712854]
[1756110561402,0.18992154,111890.0,111880.0,0.00301]
[1756110561613,0.5703771,111890.0,111880.0,0.00301]
[1756110562607,0.5703771,111890.0,111880.0,0.00501]
[1756110562873,0.5703771,111890.0,111880.0,0.00701]
[1756110563724,0.4156971,111890.0,111880.0,0.00701]
[1756110563904,0.5703371,111890.0,111880.0,0.00701]
[1756110565382,0.5703371,111890.0,111880.0,0.00908]
[1756110565755,0.57033672,111890.0,111880.0,0.00908]
[1756110565947,0.57033672,111890.0,111880.0,0.00701]
[1756110568908,0.58706448,111890.0,111880.0,0.00701]
[1756110569324,0.76581146,111890.0,111880.0,0.00701]
[1756110569857,0.76581146,111890.0,111880.0,0.004]
[1756110570710,0.76581146,111890.0,111880.0,0.00701]
[1756110571767,0.76581146,111890.0,111880.0,0.004]
[1756110573493,0.3584789,111890.0,111880.0,0.004]
[1756110573737,0.47224065,111890.0,111880.0,0.004]
[1756110575326,0.45551289,111890.0,111880.0,0.004]
[1756110575565,0.17876296,111880.0,111870.0,0.05505854]
[1756110575776,0.19549093,111880.0,111870.0,0.05505854]
[1756110575999,0.62237634,111880.0,111870.0,0.05505854]
[1756110576203,0.63074027,111880.0,111870.0,0.05505854]
[1756110576386,0.64925286,111880.0,111870.0,0.05505854]
[1756110576529,0.65761543,111880.0,111870.0,0.05505854]
[1756110576981,0.9552125,111880.0,111870.0,0.05505854]
[1756110577206,0.94684993,111880.0,111870.0,0.05505854]
[1756110578134,0.94684993,111880.0,111870.0,0.05705854]
[1756110578642,0.94684993,111880.0,111870.0,0.05905854]
[1756110581438,0.93286154,111880.0,111870.0,0.05905854]
[1756110582405,1.08730154,111880.0,111870.0,0.05905854]
[1756110582614,1.08730154,111880.0,111870.0,0.06219854]
[1756110584692,1.1012898,111880.0,111870.0,0.06219854]
[1756110585099,1.08456465,111880.0,111870.0,0.06219854]
[1756110585253,1.10128362,111880.0,111870.0,0.06219854]
[1756110585481,0.68119591,111880.0,111870.0,0.07054142]
[1756110585683,0.83559591,111880.0,111870.0,0.06426854]
[1756110586125,0.83559535,111880.0,111870.0,0.06426854]
[1756110587671,1.01435831,111880.0,111870.0,0.06426854]
[1756110588352,0.83559535,111880.0,111870.0,0.06426854]
[1756110588954,0.68119535,111880.0,111870.0,0.06426854]
[1756110589174,0.83555535,111880.0,111870.0,0.06426854]
[1756110589600,1.01431831,111880.0,111870.0,0.06426854]
[1756110589804,0.9975999,111880.0,111870.0,0.06426854]
[1756110591691,0.81879694,111880.0,111870.0,0.06426854]
[1756110591892,0.83551552,111880.0,111870.0,0.06426854]
[1756110592105,0.81879694,111880.0,111870.0,0.06426854]
[1756110592306,0.9975599,111880.0,111870.0,0.06426854]
[1756110592534,0.81879694,111880.0,111870.0,0.06426854]
[1756110593980,0.9975599,111880.0,111870.0,0.06426854]
[1756110594190,1.01427884,111880.0,111870.0,0.06426854]
[1756110599039,1.01428408,111880.0,111870.0,0.06426854]
[1756110599269,0.68120112,111880.0,111870.0,0.06426854]
[1756110599479,1.01420408,111880.0,111870.0,0.06426854]
[1756110599842,0.9974799,111880.0,111870.0,0.06426854]
[1756110600062,1.01420529,111880.0,111870.0,0.06426854]
[1756110600278,0.83544233,111880.0,111870.0,0.07074842]
[1756110600520,0.31432233,111880.0,111870.0,0.07074842]
[1756110600731,0.181075,111890.0,111870.0,0.07074842]
[1756110600937,0.20616218,111890.0,111880.0,0.00314]
[1756110601160,0.72490916,111890.0,111880.0,0.00521]
[1756110601366,0.57070916,111890.0,111870.0,0.05905854]
[1756110601607,0.67296296,111880.0,111870.0,0.05905854]
[1756110601836,0.68968775,111880.0,111870.0,0.05905854]
[1756110602041,0.68968775,111880.0,111870.0,0.05705854]
[1756110602300,0.68968775,111880.0,111870.0,0.05505854]
[1756110602534,0.71656675,111880.0,111870.0,0.05505854]
[1756110602961,0.71656675,111880.0,111870.0,0.05705854]
[1756110603637,0.71656675,111880.0,111870.0,0.05905854]
[1756110603846,0.89032115,111880.0,111870.0,0.05905854]
[1756110604067,0.8034515,111880.0,111870.0,0.05905854]
[1756110604550,1.1781726,111880.0,111870.0,0.05905854]
[1756110605693,1.1781726,111880.0,111870.0,0.05705854]
[1756110605884,1.1781726,111880.0,111870.0,0.05605854]
[1756110606108,1.1781726,111880.0,111870.0,0.05705854]
[1756110606522,1.02397128,111880.0,111870.0,0.05605854]
[1756110606734,1.02397128,111880.0,111870.0,0.06126854]
[1756110606952,1.17813128,111880.0,111870.0,0.06126854]
[1756110607598,1.06611953,111880.0,111870.0,0.06226854]
[1756110607967,1.08284494,111880.0,111870.0,0.06226854]
[1756110609608,0.92872494,111880.0,111870.0,0.06226854]
[1756110609811,1.08284494,111880.0,111870.0,0.06226854]
[1756110610011,0.92872494,111880.0,111870.0,0.06226854]
[1756110610213,0.68120198,111880.0,111870.0,0.06226854]
[1756110610432,0.83532198,111880.0,111870.0,0.06226854]
[1756110610648,1.01408494,111880.0,111870.0,0.06226854]
[1756110610853,0.83528198,111880.0,111870.0,0.06226854]
[1756110611058,1.01404592,111880.0,111870.0,0.06226854]
[1756110611278,0.68120296,111880.0,111870.0,0.06226854]
[1756110611486,0.68120296,111880.0,111870.0,0.06854842]
[1756110611687,0.83528296,111880.0,111870.0,0.06854842]
[1756110612134,0.83528296,111880.0,111870.0,0.06226854]
[1756110612948,0.68120296,111880.0,111870.0,0.06226854]
[1756110613151,0.83528296,111880.0,111870.0,0.06226854]
[1756110613326,0.85996592,111880.0,111870.0,0.06226854]
[1756110613561,1.01404592,111880.0,111870.0,0.06226854]
[1756110613768,1.01404592,111880.0,111870.0,0.06019854]
[1756110613913,0.85996592,111880.0,111870.0,0.06019854]
[1756110614324,1.01404592,111880.0,111870.0,0.06019854]
[1756110614689,1.02240807,111880.0,111870.0,0.06019854]
[1756110615309,1.02240807,111880.0,111870.0,0.06224854]
[1756110616425,1.02240807,111880.0,111870.0,0.06019854]